fUST/lending_fUST_20250331
["ID","MTS","AMOUNT","RATE_DAILY","PERIOD"]
[356904289,1743411045165,-612.97,0.00019452,2]
[356904290,1743411045174,-1092.35,0.00019452,2]
[356904291,1743411045183,-1473.93,0.00019452,2]
[356904292,1743411045194,-500.0,0.00019452,2]
[356904293,1743411045203,-314.33,0.00019452,2]
[356904294,1743411045212,-1056.82,0.00019452,2]
[356904295,1743411045221,-236.91,0.00019452,2]
[356904296,1743411045231,-490.61,0.00019452,2]
[356904297,1743411045240,-500.0,0.00019452,2]
[356904298,1743411045250,-500.0,0.00019452,2]
[356904299,1743411045259,-757.23,0.00019452,2]
[356904300,1743411045270,-1581.6,0.00019452,2]
[356904301,1743411045279,-500.0,0.00019452,2]
[356904302,1743411045289,-500.0,0.00019452,2]
[356904303,1743411045298,-500.0,0.00019452,2]
[356904304,1743411045307,-500.0,0.00019452,2]
[356904305,1743411045317,-500.0,0.00019452,2]
[356904306,1743411045327,-189.51,0.00019452,2]
[356904307,1743411045337,-5494.95,0.00019452,2]
[356904308,1743411045346,-500.0,0.00019452,2]
[356904309,1743411045356,-565.55,0.00019452,2]
[356904310,1743411045366,-500.0,0.00019452,2]
[356904311,1743411045376,-221.3,0.00019452,2]
[356904312,1743411045386,-162.89,0.00019452,2]
[356904313,1743411045396,-991.23,0.00019452,2]
[356904314,1743411045405,-500.0,0.00019452,2]
[356904315,1743411045415,-322.37,0.00019452,2]
[356904316,1743411045425,-500.0,0.00019452,2]
[356904317,1743411045435,-1111.47,0.00019452,2]
[356904318,1743411045446,-4662.63,0.00019452,2]
[356904319,1743411045455,-691.34,0.00019452,2]
[356904320,1743411045465,-158.67,0.00019452,2]
[356904321,1743411045474,-1115.25,0.00019452,2]
[356904322,1743411045484,-941.76,0.00019452,2]
[356904323,1743411045495,-500.0,0.00019452,2]
[356904324,1743411045505,-500.0,0.00019452,2]
[356904325,1743411045515,-500.0,0.00019452,2]
[356904326,1743411045528,-500.0,0.00019452,2]
[356904327,1743411045538,-500.0,0.00019452,2]
[356904328,1743411045548,-567.78,0.00019452,2]
[356904329,1743411045558,-799.86,0.00019452,2]
[356904330,1743411045568,-1364.76,0.00019452,2]
[356904331,1743411045577,-940.86,0.00019452,2]
[356904332,1743411045587,-1603.48,0.00019452,2]
[356904333,1743411045598,-2968.31,0.00019452,2]
[356904334,1743411045608,-500.0,0.00019452,2]
[356904335,1743411045618,-957.44,0.00019452,2]
[356904336,1743411045628,-500.0,0.00019452,2]
[356904337,1743411045637,-500.0,0.00019452,2]
[356904338,1743411045647,-534.11499715,0.00019452,2]
[356904339,1743411045656,-499.362953,0.00019452,2]
[356904340,1743411045666,-500.0,0.00019452,2]
[356904341,1743411045675,-7833.1,0.00019452,2]
[356904342,1743411045686,-1009.21,0.00019452,2]
[356904343,1743411045697,-1874.37,0.00019452,2]
[356904344,1743411045707,-1989.81,0.00019452,2]
[356904345,1743411045716,-1022.73,0.00019452,2]
[356904346,1743411045726,-544.21,0.00019452,2]
[356904347,1743411045735,-1143.12,0.00019452,2]
[356904348,1743411045745,-881.79,0.00019452,2]
[356904349,1743411045754,-500.0,0.00019452,2]
[356904350,1743411045764,-832.94,0.00019452,2]
[356904351,1743411045774,-1454.31,0.00019452,2]
[356904352,1743411045783,-509.7,0.00019452,2]
[356904353,1743411045793,-3035.77,0.00019452,2]
[356904354,1743411045802,-1314.9,0.00019452,2]
[356904355,1743411045812,-2550.32,0.00019452,2]
[356904356,1743411045822,-1641.3,0.00019452,2]
[356904357,1743411045832,-221.41,0.00019452,2]
[356904358,1743411045842,-2246.65,0.00019452,2]
[356904359,1743411045852,-500.0,0.00019452,2]
[356904360,1743411045862,-823.48,0.000196,2]
[356904361,1743411045872,-151.0,0.000197,2]
[356904362,1743411045882,-500.0,0.00019713,2]
[356904364,1743411045892,-187.26933515,0.00019725,2]
[356904366,1743411045901,-500.0,0.00019726,2]
[356904367,1743411045911,-500.0,0.00019726,2]
[356904368,1743411045921,-233.24,0.00019726,2]
[356904369,1743411045932,-500.0,0.00019726,2]
[356904370,1743411045942,-500.0,0.00019726,2]
[356904371,1743411045953,-500.0,0.00019726,2]
[356904372,1743411045963,-500.0,0.00019726,2]
[356904373,1743411045972,-500.0,0.00019726,2]
[356904374,1743411045982,-150.24,0.00019726,2]
[356904375,1743411045992,-500.0,0.00019726,2]
[356904376,1743411046002,-150.29,0.00019726,2]
[356904377,1743411046012,-150.29,0.00019726,2]
[356904378,1743411046022,-150.24,0.00019726,2]
[356904379,1743411046032,-500.0,0.00019726,2]
[356904380,1743411046041,-500.0,0.00019726,2]
[356904381,1743411046051,-500.0,0.00019726,2]
[356904382,1743411046061,-500.0,0.00019726,2]
[356904383,1743411046070,-500.0,0.00019726,2]
[356904384,1743411046080,-524.59,0.00019726,2]
[356904385,1743411046091,-500.0,0.00019726,2]
[356904386,1743411046100,-500.0,0.00019726,2]
[356904387,1743411046110,-500.0,0.00019726,2]
[356904388,1743411046120,-500.0,0.00019726,2]
[356904389,1743411046131,-464.29431315,0.00019726,2]
[356904390,1743411046141,-516.59,0.00019726,2]
[356904391,1743411046151,-1253.24,0.00019726,2]
[356904392,1743411046160,-500.0,0.00019726,2]
[356904393,1743411046170,-500.0,0.00019726,2]
[356904394,1743411046180,-500.0,0.00019726,2]
[356904395,1743411046190,-730.5,0.00019726,2]
[356904396,1743411046200,-500.0,0.00019726,2]
[356904397,1743411046209,-500.0,0.00019726,2]
[356904398,1743411046218,-150.24,0.00019726,2]
[356904399,1743411046228,-500.0,0.00019726,2]
[356904400,1743411046237,-500.0,0.00019726,2]
[356904401,1743411046246,-500.0,0.00019726,2]
[356904402,1743411046256,-500.0,0.00019726,2]
[356904403,1743411046265,-500.0,0.00019726,2]
[356904404,1743411046275,-751.99,0.00019726,2]
[356904405,1743411046285,-500.0,0.00019726,2]
[356904406,1743411046295,-500.0,0.00019726,2]
[356904407,1743411046305,-500.0,0.00019726,2]
[356904408,1743411046314,-500.0,0.00019726,2]
[356904409,1743411046323,-150.29,0.00019726,2]
[356904410,1743411046333,-500.0,0.00019726,2]
[356904411,1743411046343,-500.0,0.00019726,2]
[356904412,1743411046352,-500.0,0.00019726,2]
[356904413,1743411046361,-500.0,0.00019726,2]
[356904414,1743411046371,-500.0,0.00019726,2]
[356904415,1743411046380,-500.0,0.00019726,2]
[356904416,1743411046390,-500.0,0.00019726,2]
[356904417,1743411046399,-500.0,0.00019726,2]
[356904418,1743411046410,-200.0,0.00019726,2]
[356904419,1743411046420,-500.0,0.00019726,2]
[356904420,1743411046429,-150.24,0.00019726,2]
[356904421,1743411046438,-500.0,0.00019726,2]
[356904422,1743411046448,-500.0,0.00019726,2]
[356904423,1743411046457,-500.0,0.00019726,2]
[356904424,1743411046467,-500.0,0.00019726,2]
[356904425,1743411046476,-500.0,0.00019726,2]
[356904426,1743411046486,-500.0,0.00019726,2]
[356904427,1743411046495,-500.0,0.00019726,2]
[356904428,1743411046505,-500.0,0.00019726,2]
[356904429,1743411046515,-612.97,0.00019726,2]
[356904430,1743411046526,-1092.35,0.00019726,2]
[356904431,1743411046536,-1473.93,0.00019726,2]
[356904432,1743411046545,-437.37364306,0.00019726,2]
[356904433,1743411046555,-1056.82,0.00019726,2]
[356904434,1743411046566,-500.0,0.00019726,2]
[356904435,1743411046575,-500.0,0.00019726,2]
[356904436,1743411046585,-757.23,0.00019726,2]
[356904437,1743411046596,-1581.6,0.00019726,2]
[356904438,1743411046606,-500.0,0.00019726,2]
[356904439,1743411046616,-500.0,0.00019726,2]
[356904440,1743411046625,-500.0,0.00019726,2]
[356904441,1743411046634,-500.0,0.00019726,2]
[356904442,1743411046644,-500.0,0.00019726,2]
[356904443,1743411046653,-5494.95,0.00019726,2]
[356904444,1743411046662,-500.0,0.00019726,2]
[356904445,1743411046672,-565.55,0.00019726,2]
[356904446,1743411046686,-500.0,0.00019726,2]
[356904447,1743411046696,-991.23,0.00019726,2]
[356904448,1743411046706,-500.0,0.00019726,2]
[356904449,1743411046715,-500.0,0.00019726,2]
[356904450,1743411046724,-1111.47,0.00019726,2]
[356904451,1743411046734,-500.0,0.00019726,2]
[356904452,1743411046743,-4662.63,0.00019726,2]
[356904453,1743411046753,-691.34,0.00019726,2]
[356904454,1743411046762,-1115.25,0.00019726,2]
[356904455,1743411046773,-941.76,0.00019726,2]
[356904456,1743411046782,-500.0,0.00019726,2]
[356904457,1743411046793,-500.0,0.00019726,2]
[356904458,1743411046802,-500.0,0.00019726,2]
[356904459,1743411046814,-500.0,0.00019726,2]
[356904460,1743411046824,-500.0,0.00019726,2]
[356904461,1743411046833,-567.78,0.00019726,2]
[356904462,1743411046843,-799.86,0.00019726,2]
[356904463,1743411046852,-1364.76,0.00019726,2]
[356904464,1743411046861,-940.86,0.00019726,2]
[356904465,1743411046871,-1603.48,0.00019726,2]
[356904466,1743411046880,-2968.31,0.00019726,2]
[356904467,1743411046890,-500.0,0.00019726,2]
[356904468,1743411046899,-957.44,0.00019726,2]
[356904469,1743411046909,-500.0,0.00019726,2]
[356904470,1743411046919,-500.0,0.00019726,2]
[356904471,1743411046928,-150.29,0.00019726,2]
[356904472,1743411046938,-500.0,0.00019726,2]
[356904473,1743411046949,-150.58556691,0.00019726,2]
[356904474,1743411046959,-500.0,0.00019726,2]
[356904475,1743411046968,-7833.1,0.00019726,2]
[356904476,1743411046978,-150.24,0.00019726,2]
[356904477,1743411046987,-150.24,0.00019726,2]
[356904478,1743411046997,-1009.21,0.00019726,2]
[356904479,1743411047006,-151.51226503,0.00019726,2]
[356904480,1743411047016,-150.24,0.00019726,2]
[356904481,1743411047025,-150.24,0.00019726,2]
[356904482,1743411047035,-1874.37,0.00019726,2]
[356904483,1743411047045,-151.6735817,0.00019726,2]
[356904484,1743411047055,-1989.81,0.00019726,2]
[356904485,1743411047065,-1022.73,0.00019726,2]
[356904486,1743411047074,-544.21,0.00019726,2]
[356904487,1743411047084,-1143.12,0.00019726,2]
[356904488,1743411047094,-881.79,0.00019726,2]
[356904489,1743411047103,-500.0,0.00019726,2]
[356904490,1743411047113,-832.94,0.00019726,2]
[356904491,1743411047123,-1454.31,0.00019726,2]
[356904492,1743411047132,-509.7,0.00019726,2]
[356904493,1743411047142,-3035.77,0.00019726,2]
[356904494,1743411047152,-1314.9,0.00019726,2]
[356904495,1743411047161,-2550.32,0.00019726,2]
[356904496,1743411047171,-1641.3,0.00019726,2]
[356904497,1743411047181,-2246.65,0.00019726,2]
[356904498,1743411047191,-500.0,0.00019726,2]
[356904499,1743411047320,-183.706,0.000198,2]
[356904500,1743411047331,-150.24,0.00019863,2]
[356904501,1743411047341,-150.24,0.00019863,2]
[356904502,1743411047352,-500.0,0.00019863,2]
[356904503,1743411047362,-150.24,0.00019863,2]
[356904504,1743411047372,-150.24,0.00019863,2]
[356904505,1743411047383,-500.13847987,0.00019863,2]
[356904506,1743411047392,-995.4706949,0.00019863,2]
[356904507,1743411047403,-204.27934262,0.00019863,2]
[356904508,1743411047413,-201.43545492,0.00019863,2]
[356904509,1743411047422,-1027.10723507,0.00019958,2]
[356904510,1743411047432,-4669.12167155,0.00019969,2]
[356904511,1743411047442,-199.52,0.0002,2]
[356904512,1743411047452,-150.24,0.0002,2]
[356904513,1743411047461,-500.0,0.0002,2]
[356904514,1743411047471,-197.45922374,0.0002,2]
[356904515,1743411047480,-199.70073826,0.0002,2]
[356904516,1743411047490,-500.0,0.0002,2]
[356904517,1743411047500,-500.0,0.0002,2]
[356904518,1743411047510,-500.0,0.0002,2]
[356904519,1743411047520,-500.0,0.0002,2]
[356904520,1743411047531,-500.0,0.0002,2]
[356904521,1743411047542,-421.91643418,0.0002,2]
[356904522,1743411047551,-538.68584465,0.0002,2]
[356904523,1743411047562,-500.0,0.0002,2]
[356904524,1743411047572,-500.0,0.0002,2]
[356904525,1743411047581,-500.0,0.0002,2]
[356904526,1743411047590,-500.0,0.0002,2]
[356904527,1743411047603,-500.0,0.0002,2]
[356904528,1743411047613,-500.0,0.0002,2]
[356904529,1743411047622,-524.59,0.0002,2]
[356904530,1743411047632,-500.0,0.0002,2]
[356904531,1743411047642,-500.0,0.0002,2]
[356904532,1743411047651,-500.0,0.0002,2]
[356904533,1743411047660,-500.0,0.0002,2]
[356904534,1743411047670,-516.59,0.0002,2]
[356904535,1743411047679,-1253.24,0.0002,2]
[356904536,1743411047689,-500.0,0.0002,2]
[356904537,1743411047699,-500.0,0.0002,2]
[356904538,1743411047708,-730.5,0.0002,2]
[356904539,1743411047717,-500.0,0.0002,2]
[356904540,1743411047727,-500.0,0.0002,2]
[356904541,1743411047736,-500.0,0.0002,2]
[356904542,1743411047746,-500.0,0.0002,2]
[356904543,1743411047755,-500.0,0.0002,2]
[356904544,1743411047765,-500.0,0.0002,2]
[356904545,1743411047775,-500.0,0.0002,2]
[356904546,1743411047784,-751.99,0.0002,2]
[356904547,1743411047793,-500.0,0.0002,2]
[356904548,1743411047802,-500.0,0.0002,2]
[356904549,1743411047811,-500.0,0.0002,2]
[356904550,1743411047821,-238.65421288,0.0002,2]
[356904551,1743411047831,-500.0,0.0002,2]
[356904552,1743411047840,-500.0,0.0002,2]
[356904553,1743411047849,-500.0,0.0002,2]
[356904554,1743411047859,-500.0,0.0002,2]
[356904555,1743411047868,-500.0,0.0002,2]
[356904556,1743411047878,-500.0,0.0002,2]
[356904557,1743411047888,-500.0,0.0002,2]
[356904558,1743411047898,-500.0,0.0002,2]
[356904559,1743411047908,-500.0,0.0002,2]
[356904560,1743411047917,-500.0,0.0002,2]
[356904561,1743411047927,-500.0,0.0002,2]
[356904562,1743411047937,-500.0,0.0002,2]
[356904563,1743411047946,-214.17170396,0.0002,2]
[356904564,1743411047955,-500.0,0.0002,2]
[356904565,1743411047965,-500.0,0.0002,2]
[356904566,1743411047974,-500.0,0.0002,2]
[356904567,1743411047984,-500.0,0.0002,2]
[356904568,1743411047993,-612.97,0.0002,2]
[356904569,1743411048003,-1092.35,0.0002,2]
[356904570,1743411048012,-1473.93,0.0002,2]
[356904571,1743411048022,-1056.82,0.0002,2]
[356904572,1743411048031,-500.0,0.0002,2]
[356904573,1743411048041,-500.0,0.0002,2]
[356904574,1743411048050,-757.23,0.0002,2]
[356904575,1743411048060,-1581.6,0.0002,2]
[356904576,1743411048070,-500.0,0.0002,2]
[356904577,1743411048079,-500.0,0.0002,2]
[356904578,1743411048090,-500.0,0.0002,2]
[356904579,1743411048100,-309.56,0.0002,2]
[356904580,1743411048110,-500.0,0.0002,2]
[356904581,1743411048120,-5494.95,0.0002,2]
[356904582,1743411048130,-500.0,0.0002,2]
[356904583,1743411048140,-565.55,0.0002,2]
[356904584,1743411048150,-500.0,0.0002,2]
[356904585,1743411048160,-991.23,0.0002,2]
[356904586,1743411048170,-369.54,0.0002,2]
[356904587,1743411048180,-500.0,0.0002,2]
[356904588,1743411048190,-1111.47,0.0002,2]
[356904589,1743411048201,-4662.63,0.0002,2]
[356904590,1743411048211,-691.34,0.0002,2]
[356904591,1743411048222,-1115.25,0.0002,2]
[356904592,1743411048232,-941.76,0.0002,2]
[356904593,1743411048242,-500.0,0.0002,2]
[356904594,1743411048251,-500.0,0.0002,2]
[356904595,1743411048262,-500.0,0.0002,2]
[356904596,1743411048272,-500.0,0.0002,2]
[356904597,1743411048281,-500.0,0.0002,2]
[356904598,1743411048291,-567.78,0.0002,2]
[356904599,1743411048300,-799.86,0.0002,2]
[356904600,1743411048310,-1364.76,0.0002,2]
[356904601,1743411048319,-940.86,0.0002,2]
[356904602,1743411048329,-1603.48,0.0002,2]
[356904603,1743411048339,-2968.31,0.0002,2]
[356904604,1743411048348,-500.0,0.0002,2]
[356904605,1743411048358,-957.44,0.0002,2]
[356904606,1743411048368,-500.0,0.0002,2]
[356904607,1743411048378,-500.0,0.0002,2]
[356904608,1743411048388,-500.0,0.0002,2]
[356904609,1743411048397,-7833.1,0.0002,2]
[356904610,1743411048407,-1009.21,0.0002,2]
[356904611,1743411048417,-1874.37,0.0002,2]
[356904612,1743411048427,-1989.81,0.0002,2]
[356904613,1743411048436,-1022.73,0.0002,2]
[356904614,1743411048447,-544.21,0.0002,2]
[356904615,1743411048457,-1143.12,0.0002,2]
[356904616,1743411048467,-881.79,0.0002,2]
[356904617,1743411048477,-500.0,0.0002,2]
[356904618,1743411048487,-832.94,0.0002,2]
[356904619,1743411048497,-1454.31,0.0002,2]
[356904620,1743411048507,-509.7,0.0002,2]
[356904621,1743411048517,-3035.77,0.0002,2]
[356904622,1743411048530,-1314.9,0.0002,2]
[356904623,1743411048539,-2550.32,0.0002,2]
[356904624,1743411048549,-1641.3,0.0002,2]
[356904625,1743411048559,-2246.65,0.0002,2]
[356904626,1743411048569,-500.0,0.0002,2]
[356904627,1743411048579,-500.0,0.00020076,2]
[356904628,1743411048590,-500.0,0.00020076,2]
[356904629,1743411048600,-151.0,0.000201,3]
[356904630,1743411048610,-502.10923942,0.00020134,2]
[356904631,1743411048622,-500.99111064,0.00020134,2]
[356904632,1743411048632,-500.0,0.00020134,2]
[356904633,1743411048642,-501.04016212,0.00020134,2]
[356904634,1743411048651,-500.0,0.00020134,2]
[356904635,1743411048661,-500.0,0.00020134,2]
[356904636,1743411048671,-500.0,0.00020134,2]
[356904637,1743411048680,-500.0,0.00020134,2]
[356904638,1743411048690,-503.89068718,0.00020134,2]
[356904639,1743411048700,-500.0,0.00020134,2]
[356904640,1743411048709,-500.0,0.00020134,2]
[356904641,1743411048719,-500.0,0.00020134,2]
[356904642,1743411048728,-500.0,0.00020134,2]
[356904643,1743411048738,-500.0,0.00020134,2]
[356904644,1743411048747,-150.24,0.00020137,2]
[356904645,1743411048757,-500.0,0.00020137,2]
[356904646,1743411048766,-503.85172824,0.00020217,2]
[356904647,1743411048776,-501.56734052,0.00020217,2]
[356904648,1743411048785,-500.0,0.00020273,2]
[356904649,1743411048795,-500.0,0.00020273,2]
[356904650,1743411048804,-500.0,0.00020273,2]
[356904651,1743411048814,-500.0,0.00020273,2]
[356904652,1743411048824,-500.0,0.00020273,2]
[356904653,1743411048833,-500.0,0.00020273,2]
[356904654,1743411048842,-500.0,0.00020273,2]
[356904655,1743411048852,-500.0,0.00020273,2]
[356904656,1743411048862,-500.0,0.00020273,2]
[356904657,1743411048872,-500.0,0.00020273,2]
[356904658,1743411048882,-500.0,0.00020273,2]
[356904659,1743411048891,-524.59,0.00020273,2]
[356904660,1743411048900,-500.0,0.00020273,2]
[356904661,1743411048910,-500.0,0.00020273,2]
[356904662,1743411048920,-500.0,0.00020273,2]
[356904663,1743411048929,-476.57291587,0.00020273,2]
[356904664,1743411048939,-516.59,0.00020273,2]
[356904665,1743411048949,-1253.24,0.00020273,2]
[356904666,1743411048958,-500.0,0.00020273,2]
[356904667,1743411048968,-500.0,0.00020273,2]
[356904668,1743411048978,-730.5,0.00020273,2]
[356904669,1743411048987,-500.0,0.00020273,2]
[356904670,1743411048997,-500.0,0.00020273,2]
[356904671,1743411049008,-500.0,0.00020273,2]
[356904672,1743411049017,-500.0,0.00020273,2]
[356904673,1743411049027,-500.0,0.00020273,2]
[356904674,1743411049036,-500.0,0.00020273,2]
[356904675,1743411049046,-500.0,0.00020273,2]
[356904676,1743411049056,-751.99,0.00020273,2]
[356904677,1743411049065,-500.0,0.00020273,2]
[356904678,1743411049075,-500.0,0.00020273,2]
[356904679,1743411049085,-500.0,0.00020273,2]
[356904680,1743411049095,-500.0,0.00020273,2]
[356904681,1743411049106,-500.0,0.00020273,2]
[356904682,1743411049115,-500.0,0.00020273,2]
[356904683,1743411049125,-500.0,0.00020273,2]
[356904684,1743411049135,-500.0,0.00020273,2]
[356904685,1743411049145,-500.0,0.00020273,2]
[356904686,1743411049155,-500.0,0.00020273,2]
[356904687,1743411049165,-500.0,0.00020273,2]
[356904688,1743411049175,-500.0,0.00020273,2]
[356904689,1743411049184,-500.0,0.00020273,2]
[356904690,1743411049194,-500.0,0.00020273,2]
[356904691,1743411049203,-500.0,0.00020273,2]
[356904692,1743411049213,-500.0,0.00020273,2]
[356904693,1743411049223,-500.0,0.00020273,2]
[356904694,1743411049233,-500.0,0.00020273,2]
[356904695,1743411049244,-500.0,0.00020273,2]
[356904696,1743411049254,-612.97,0.00020273,2]
[356904697,1743411049264,-1092.35,0.00020273,2]
[356904698,1743411049274,-1473.93,0.00020273,2]
[356904699,1743411049284,-1056.82,0.00020273,2]
[356904700,1743411049294,-500.0,0.00020273,2]
[356904701,1743411049304,-500.0,0.00020273,2]
[356904702,1743411049314,-757.23,0.00020273,2]
[356904703,1743411049324,-1581.6,0.00020273,2]
[356904704,1743411049334,-500.0,0.00020273,2]
[356904705,1743411049344,-500.0,0.00020273,2]
[356904706,1743411049353,-500.0,0.00020273,2]
[356904707,1743411049363,-500.0,0.00020273,2]
[356904708,1743411049373,-5494.95,0.00020273,2]
[356904709,1743411049382,-500.0,0.00020273,2]
[356904710,1743411049392,-565.55,0.00020273,2]
[356904711,1743411049401,-500.0,0.00020273,2]
[356904712,1743411049410,-991.23,0.00020273,2]
[356904713,1743411049419,-500.0,0.00020273,2]
[356904714,1743411049429,-1111.47,0.00020273,2]
[356904715,1743411049438,-4662.63,0.00020273,2]
[356904716,1743411049448,-691.34,0.00020273,2]
[356904717,1743411049457,-1115.25,0.00020273,2]
[356904718,1743411049466,-941.76,0.00020273,2]
[356904719,1743411049476,-500.0,0.00020273,2]
[356904720,1743411049485,-500.0,0.00020273,2]
[356904721,1743411049495,-500.0,0.00020273,2]
[356904722,1743411049504,-500.0,0.00020273,2]
[356904723,1743411049513,-500.0,0.00020273,2]
[356904724,1743411049527,-567.78,0.00020273,2]
[356904725,1743411049537,-799.86,0.00020273,2]
[356904726,1743411049546,-1364.76,0.00020273,2]
[356904727,1743411049556,-940.86,0.00020273,2]
[356904728,1743411049567,-1603.48,0.00020273,2]
[356904729,1743411049576,-2968.31,0.00020273,2]
[356904730,1743411049586,-500.0,0.00020273,2]
[356904731,1743411049595,-957.44,0.00020273,2]
[356904732,1743411049605,-500.0,0.00020273,2]
[356904733,1743411049614,-500.0,0.00020273,2]
[356904734,1743411049624,-500.0,0.00020273,2]
[356904735,1743411049633,-7833.1,0.00020273,2]
[356904736,1743411049643,-1009.21,0.00020273,2]
[356904737,1743411049652,-1874.37,0.00020273,2]
[356904738,1743411049662,-1989.81,0.00020273,2]
[356904739,1743411049671,-1022.73,0.00020273,2]
[356904740,1743411049680,-544.21,0.00020273,2]
[356904741,1743411049690,-1143.12,0.00020273,2]
[356904742,1743411049700,-881.79,0.00020273,2]
[356904743,1743411049710,-277.05366259,0.00020273,2]
[356904744,1743411049720,-832.94,0.00020273,2]
[356904745,1743411049729,-1454.31,0.00020273,2]
[356904746,1743411049770,-509.7,0.00020273,2]
[356904747,1743411049780,-3035.77,0.00020273,2]
[356904748,1743411049789,-1314.9,0.00020273,2]
[356904749,1743411049799,-2550.32,0.00020273,2]
[356904750,1743411049809,-1641.3,0.00020273,2]
[356904751,1743411049818,-2246.65,0.00020273,2]
[356904752,1743411049829,-500.0,0.00020273,2]
[356904753,1743411049838,-150.24,0.00020274,2]
[356904754,1743411049848,-500.0,0.00020274,2]
[356904755,1743411049858,-499.362953,0.00020348,2]
[356904756,1743411049867,-329.28500188,0.00020378,2]
[356904757,1743411049876,-500.0,0.0002038,2]
[356904758,1743411049886,-248.20610174,0.00020411,2]
[356904759,1743411049895,-966.68139391,0.00020411,2]
[356904760,1743411049905,-174.68733183,0.00020447,2]
[356904761,1743411049914,-645.80333173,0.00020547,2]
[356904762,1743411049923,-265.65981602,0.00020547,2]
[356904763,1743411049932,-500.0,0.00020547,2]
[356904764,1743411049941,-500.0,0.00020547,2]
[356904765,1743411049951,-500.0,0.00020547,2]
[356904766,1743411049959,-500.0,0.00020547,2]
[356904767,1743411049968,-500.0,0.00020547,2]
[356904768,1743411049978,-500.0,0.00020547,2]
[356904769,1743411049987,-500.0,0.00020547,2]
[356904770,1743411049997,-500.0,0.00020547,2]
[356904771,1743411050006,-500.0,0.00020547,2]
[356904772,1743411050015,-524.59,0.00020547,2]
[356904773,1743411050024,-500.0,0.00020547,2]
[356904774,1743411050034,-242.89043434,0.00020547,2]
[356904775,1743411050043,-500.0,0.00020547,2]
[356904776,1743411050052,-516.59,0.00020547,2]
[356904777,1743411050061,-1253.24,0.00020547,2]
[356904778,1743411050070,-500.0,0.00020547,2]
[356904779,1743411050080,-500.0,0.00020547,2]
[356904780,1743411050089,-730.5,0.00020547,2]
[356904781,1743411050099,-500.0,0.00020547,2]
[356904782,1743411050109,-500.0,0.00020547,2]
[356904783,1743411050118,-500.0,0.00020547,2]
[356904784,1743411050128,-500.0,0.00020547,2]
[356904785,1743411050137,-500.0,0.00020547,2]
[356904786,1743411050146,-500.0,0.00020547,2]
[356904787,1743411050156,-500.0,0.00020547,2]
[356904788,1743411050165,-751.99,0.00020547,2]
[356904789,1743411050174,-500.0,0.00020547,2]
[356904790,1743411050183,-500.0,0.00020547,2]